bitfinex/quotes_BTCUSD_20251217
["timestamp","ask_amount","ask_price","bid_price","bid_amount"]
[1765936992278,0.22807617,87690.0,87689.0,0.03847]
[1765936993722,0.22807617,87690.0,87689.0,0.04047]
[1765936994352,0.22807617,87690.0,87689.0,0.03947]
[1765936994568,0.01140367,87691.0,87689.0,0.03947]
[1765936994569,0.01140367,87691.0,87690.0,0.02259]
[1765936994805,0.018,87695.0,87694.0,0.03847]
[1765936995012,0.018,87695.0,87694.0,0.15201081]
[1765936995211,0.24606317,87695.0,87694.0,0.15201081]
[1765936996296,0.24606317,87695.0,87694.0,0.12942081]
[1765936996500,0.24606317,87695.0,87694.0,0.13042081]
[1765936996679,0.24606317,87695.0,87694.0,0.13142081]
[1765936997327,0.24606317,87695.0,87694.0,0.01788]
[1765936997739,0.24606317,87695.0,87694.0,0.04047]
[1765937001926,0.018,87695.0,87694.0,0.04047]
[1765937004435,0.018,87695.0,87694.0,0.04092772]
[1765937004950,0.2394534,87700.0,87699.0,0.03847]
[1765937005086,0.2394534,87700.0,87696.0,0.01203]
[1765937005087,0.23944607,87703.0,87702.0,0.16404081]
[1765937005307,0.25744607,87703.0,87702.0,0.16404081]
[1765937005925,0.018,87703.0,87702.0,0.16404081]
[1765937006330,0.02,87703.0,87702.0,0.16404081]
[1765937007133,0.019,87703.0,87702.0,0.16404081]
[1765937007307,0.001,87703.0,87702.0,0.16404081]
[1765937007516,0.018,87703.0,87702.0,0.16404081]
[1765937007916,0.018,87703.0,87702.0,0.16504081]
[1765937010645,0.01140146,87708.0,87706.0,0.01203]
[1765937010851,0.01140081,87713.0,87712.0,0.16404081]
[1765937011094,0.02940081,87713.0,87712.0,0.16404081]
[1765937012238,0.03040081,87713.0,87712.0,0.16404081]
[1765937012643,0.03040081,87713.0,87712.0,0.02791]
[1765937013065,0.02940081,87713.0,87712.0,0.01203]
[1765937013684,0.03040081,87713.0,87712.0,0.01203]
[1765937014306,0.02940081,87713.0,87712.0,0.01203]
[1765937017551,0.22802677,87709.0,87707.0,0.02259]
[1765937018926,0.22802677,87709.0,87707.0,0.02359]
[1765937019914,0.22802677,87709.0,87707.0,0.02459]
[1765937021804,0.22802677,87709.0,87707.0,0.002]
[1765937022226,0.00408321,87708.0,87707.0,0.002]
[1765937022644,0.11791372,87708.0,87707.0,0.001]
[1765937022872,0.22803977,87704.0,87702.0,0.14939676]
[1765937023088,0.22803977,87704.0,87687.0,0.11354081]
[1765937023089,0.22809698,87682.0,87681.0,0.14939676]
[1765937023301,0.22810766,87678.0,87676.0,0.17226676]
[1765937023509,0.22810766,87678.0,87677.0,0.02287]
[1765937023904,0.22810766,87678.0,87677.0,0.03849]
[1765937024119,0.23951168,87679.0,87677.0,0.03849]
[1765937024347,0.23951168,87679.0,87678.0,0.02287]
[1765937025415,0.23951168,87679.0,87678.0,0.03849]
[1765937026508,0.23951168,87679.0,87678.0,0.04149]
[1765937027562,0.23951168,87679.0,87678.0,0.003]
[1765937030253,0.23951168,87679.0,87678.0,0.001]
[1765937030495,0.35334219,87679.0,87678.0,0.002]
[1765937030623,0.35334219,87679.0,87678.0,0.001]
[1765937030830,0.35334219,87679.0,87678.0,0.002]
[1765937031708,0.35449734,87679.0,87678.0,0.002]
[1765937033156,0.24066683,87679.0,87678.0,0.002]
[1765937034220,0.24066683,87679.0,87662.0,0.14939676]
[1765937034221,0.22814642,87663.0,87662.0,0.14939676]
[1765937034419,0.22815423,87660.0,87659.0,0.14939676]
[1765937035747,0.22815423,87660.0,87659.0,0.15139676]
[1765937036400,0.22815423,87660.0,87659.0,0.15339676]
[1765937036986,0.22815423,87660.0,87659.0,0.15139676]
[1765937037541,0.22815423,87660.0,87659.0,0.15039676]
[1765937037742,0.22815423,87660.0,87659.0,0.15139676]
[1765937038685,0.22815423,87660.0,87659.0,0.002]
[1765937038900,0.28518415,87660.0,87659.0,0.002]
[1765937039598,0.28518415,87660.0,87659.0,0.001]
[1765937039961,0.28518415,87660.0,87654.0,0.00024958]
[1765937039962,0.22816724,87655.0,87654.0,0.00024958]
[1765937040380,0.34199775,87655.0,87654.0,0.00024958]
[1765937041543,0.34299775,87655.0,87654.0,0.00024958]
[1765937041758,0.34199775,87655.0,87654.0,0.00024958]
[1765937042663,0.34399775,87655.0,87654.0,0.00024958]
[1765937043092,0.23216724,87655.0,87654.0,0.00024958]
[1765937043312,0.25016724,87655.0,87654.0,0.00024958]
[1765937043948,0.30719716,87655.0,87654.0,0.00024958]
[1765937044158,0.30519716,87655.0,87654.0,0.00024958]
[1765937044367,0.24616724,87655.0,87654.0,0.00024958]
[1765937044795,0.24716724,87655.0,87654.0,0.00024958]
[1765937045253,0.001,87655.0,87654.0,0.04008958]
[1765937045465,0.002,87655.0,87654.0,0.0405473]
[1765937045673,0.002,87655.0,87654.0,0.17117035]
[1765937046348,0.001,87655.0,87654.0,0.17117035]
[1765937046607,0.01140615,87672.0,87671.0,0.0522]
[1765937046816,0.01140589,87674.0,87673.0,0.03984]
[1765937047046,0.23952369,87674.0,87673.0,0.03984]
[1765937047844,0.23952369,87674.0,87673.0,0.04184]
[1765937048424,0.23952369,87674.0,87673.0,0.002]
[1765937049588,0.23952369,87674.0,87673.0,0.004]
[1765937051796,0.23952369,87674.0,87673.0,0.002]
[1765937052000,0.23952369,87674.0,87673.0,0.003]
[1765937052522,0.23952369,87674.0,87673.0,0.001]
[1765937052935,0.23952369,87674.0,87673.0,0.002]
[1765937055248,0.23952369,87674.0,87673.0,0.001]
[1765937056028,0.23952369,87674.0,87654.0,0.01211579]
[1765937056029,0.0114081,87657.0,87655.0,0.02414]
[1765937056543,0.22816464,87656.0,87655.0,0.03984]
[1765937056812,0.22816464,87656.0,87654.0,0.0007073]
[1765937057656,0.22816464,87656.0,87655.0,0.002]
[1765937057884,0.22816464,87656.0,87654.0,0.0007073]
[1765937058090,0.22816464,87656.0,87655.0,0.001]
[1765937058489,0.22816464,87656.0,87654.0,0.0007073]
[1765937059112,0.22816464,87656.0,87655.0,0.002]
[1765937059521,0.22816464,87656.0,87654.0,0.0027073]
[1765937060068,0.22816464,87656.0,87654.0,0.0007073]
[1765937060487,0.22816464,87656.0,87655.0,0.002]
[1765937060935,0.22816464,87656.0,87654.0,0.00224958]
[1765937061157,0.06111313,87655.0,87654.0,0.00324958]
[1765937061383,0.06111313,87655.0,87654.0,0.00124958]
[1765937061586,0.00408321,87655.0,87654.0,0.00124958]
[1765937062206,0.22816464,87656.0,87654.0,0.00124958]
[1765937062422,0.01057213,87655.0,87654.0,0.00124958]
[1765937063581,0.01057213,87655.0,87654.0,0.00224958]
[1765937064000,0.01057213,87655.0,87654.0,0.00124958]
[1765937064392,0.01465534,87655.0,87654.0,0.00124958]
[1765937064592,0.01465472,87655.0,87654.0,0.00124958]
[1765937065034,0.06760143,87655.0,87654.0,0.00124958]
[1765937065255,0.07168464,87655.0,87654.0,0.00224958]
[1765937065909,0.07168362,87655.0,87654.0,0.00124958]
[1765937066125,0.0146537,87655.0,87654.0,0.00124958]
[1765937066328,0.0146537,87655.0,87654.0,0.00024958]
[1765937066737,0.0156537,87655.0,87654.0,0.00024958]
[1765937067153,0.01357049,87655.0,87654.0,0.00024958]
[1765937067558,0.01357049,87655.0,87654.0,0.04008958]
[1765937067761,0.03161049,87655.0,87654.0,0.04008958]
[1765937068181,0.02961049,87655.0,87654.0,0.04008958]
[1765937068580,0.03061049,87655.0,87654.0,0.04008958]
[1765937069023,0.001,87655.0,87654.0,0.0405473]
[1765937069230,0.01804,87659.0,87658.0,0.02806]
[1765937069435,0.24619683,87659.0,87658.0,0.0522]
[1765937071111,0.24719683,87659.0,87658.0,0.0522]
[1765937071767,0.24719683,87659.0,87658.0,0.02806]
[1765937072235,0.24719683,87659.0,87658.0,0.0522]
[1765937072541,0.01904,87659.0,87658.0,0.0522]
[1765937080713,0.22816464,87656.0,87655.0,0.05257]
[1765937082545,0.22916464,87656.0,87655.0,0.05257]
[1765937082956,0.22916464,87656.0,87654.0,0.0007073]
[1765937083589,0.22916464,87656.0,87654.0,0.0249073]
[1765937084029,0.22816464,87656.0,87655.0,0.03642]
[1765937084241,0.22916464,87656.0,87655.0,0.05257]
[1765937085513,0.22816464,87656.0,87655.0,0.05257]
[1765937085696,0.22916464,87656.0,87655.0,0.05257]
[1765937086822,0.22916464,87656.0,87655.0,0.02837]
[1765937087714,0.22916464,87656.0,87655.0,0.01222]
[1765937087926,0.22916464,87656.0,87654.0,0.0007073]
[1765937088721,0.22816464,87656.0,87654.0,0.0007073]
[1765937089188,0.22916464,87656.0,87654.0,0.0007073]
[1765937093512,0.22916464,87656.0,87654.0,0.0249073]
[1765937094256,0.22916464,87656.0,87654.0,0.0007073]
[1765937096924,0.22916464,87656.0,87654.0,0.00024958]
[1765937096925,0.00408321,87655.0,87654.0,0.00024958]
[1765937097144,0.06111313,87655.0,87654.0,0.00024958]
[1765937097351,0.0717316,87655.0,87654.0,0.00024958]
[1765937097994,0.0727316,87655.0,87654.0,0.00024958]
[1765937098210,0.3634316,87655.0,87654.0,0.001]
[1765937098420,0.38380539,87655.0,87654.0,0.001]
[1765937098626,0.38380539,87655.0,87630.0,0.0002]
[1765937098627,0.01141122,87633.0,87630.0,0.0002]
[1765937098832,0.01549443,87633.0,87630.0,0.0002]
[1765937099049,0.22822713,87632.0,87630.0,0.0002]
[1765937100746,0.22822713,87632.0,87631.0,0.05257]
[1765937101159,0.01241122,87633.0,87632.0,0.04035]
[1765937101591,0.01141122,87633.0,87632.0,0.04035]
[1765937102051,0.03429608,87663.0,87641.0,0.05257]
[1765937102262,0.02945005,87642.0,87641.0,0.05257]
[1765937102857,0.01140966,87645.0,87643.0,0.0242]
[1765937103060,0.01140966,87645.0,87644.0,0.04035]
[1765937103454,0.23960524,87645.0,87644.0,0.04035]
[1765937104978,0.23960524,87645.0,87644.0,0.04135]
[1765937105376,0.23960524,87645.0,87644.0,0.04166201]
[1765937105578,0.23960524,87645.0,87644.0,0.04266201]
[1765937112823,0.23960524,87645.0,87644.0,0.00231201]
[1765937113979,0.23960524,87645.0,87644.0,0.04209201]
[1765937114362,0.25764524,87645.0,87644.0,0.04209201]
[1765937115560,0.25764524,87645.0,87644.0,0.01745201]
[1765937115987,0.25764524,87645.0,87644.0,0.04209201]
[1765937116563,0.25764524,87645.0,87644.0,0.00231201]
[1765937116748,0.35300508,87645.0,87644.0,0.00231201]
[1765937116959,0.25764524,87645.0,87644.0,0.00231201]
[1765937118268,0.25880039,87645.0,87644.0,0.00231201]
[1765937118483,0.31583031,87645.0,87644.0,0.00231201]
[1765937119467,0.31583031,87645.0,87644.0,0.00131201]
[1765937119667,0.25880039,87645.0,87644.0,0.00131201]
[1765937119931,0.25980039,87645.0,87644.0,0.00131201]
[1765937120134,0.25980039,87645.0,87644.0,0.00031201]
[1765937120755,0.26080039,87645.0,87644.0,0.00031201]
[1765937121167,0.25980039,87645.0,87644.0,0.00031201]
[1765937121362,0.25880039,87645.0,87644.0,0.00031201]
[1765937121576,0.25980039,87645.0,87644.0,0.00031201]
[1765937122581,0.26080039,87645.0,87644.0,0.00031201]
[1765937124409,0.31783031,87645.0,87644.0,0.00031201]
[1765937124767,0.26080039,87645.0,87644.0,0.00031201]
[1765937125857,0.24276039,87645.0,87644.0,0.03998201]
[1765937126069,0.03144966,87645.0,87644.0,0.03998201]
[1765937126485,0.02004,87645.0,87644.0,0.04043973]
[1765937127101,0.01904,87645.0,87644.0,0.04043973]
[1765937127329,0.01804,87645.0,87644.0,0.04043973]
[1765937127533,0.0294494,87647.0,87646.0,0.04068]
[1765937128000,0.0294494,87647.0,87646.0,0.0409296]
[1765937128249,0.0294494,87647.0,87646.0,0.04138732]
[1765937128460,0.03429216,87675.0,87646.0,0.04138732]
[1765937128461,0.23955897,87662.0,87661.0,0.04068]
[1765937128875,0.23955897,87662.0,87661.0,0.04113772]
[1765937129998,0.24055897,87662.0,87661.0,0.04113772]
[1765937130403,0.01340745,87662.0,87661.0,0.04113772]
[1765937130621,0.002,87662.0,87661.0,0.04113772]
[1765937130832,0.002,87662.0,87661.0,0.15467853]
[1765937131035,0.002,87662.0,87661.0,0.16836762]
[1765937131445,0.002,87662.0,87661.0,0.15467853]
[1765937131650,0.001,87662.0,87661.0,0.15467853]
[1765937132103,0.002,87662.0,87661.0,0.15667853]
[1765937132528,0.001,87662.0,87661.0,0.15667853]
[1765937132742,0.02944641,87670.0,87669.0,0.0389]
[1765937132941,0.25757461,87670.0,87669.0,0.0389]
[1765937133944,0.25757461,87670.0,87669.0,0.0399]
[1765937134354,0.25757461,87670.0,87669.0,0.01651]
[1765937134766,0.25757461,87670.0,87669.0,0.04031]
[1765937135013,0.02944641,87670.0,87669.0,0.04031]
[1765937135387,0.01804,87670.0,87669.0,0.04231]
[1765937135604,0.01804,87670.0,87669.0,0.15585081]
[1765937135845,0.2461682,87670.0,87669.0,0.04231]
[1765937137506,0.01804,87670.0,87669.0,0.04231]
[1765937146423,0.01140562,87676.0,87671.0,0.01140628]
[1765937146626,0.01140562,87676.0,87675.0,0.03909]
[1765937148588,0.01140562,87676.0,87675.0,0.04009]
[1765937149564,0.01140562,87676.0,87675.0,0.04109]
[1765937153325,0.01140562,87676.0,87675.0,0.002]
[1765937159768,0.08621888,87676.0,87675.0,0.002]
[1765937159978,0.00115515,87676.0,87675.0,0.04109]
[1765937160130,0.01140445,87685.0,87684.0,0.03909]
[1765937160332,0.25749521,87685.0,87684.0,0.03909]
[1765937160531,0.22809698,87682.0,87681.0,0.05149]
[1765937162653,0.22909698,87682.0,87681.0,0.05149]
[1765937162852,0.22909698,87682.0,87681.0,0.05249]
[1765937163181,0.22809698,87682.0,87681.0,0.05249]
[1765937163383,0.22809698,87682.0,87681.0,0.05349]
[1765937164522,0.22925213,87682.0,87681.0,0.002]
[1765937164716,0.22925213,87682.0,87681.0,0.04087]
[1765937164922,0.24725213,87682.0,87681.0,0.01726]
[1765937165149,0.54858058,87682.0,87681.0,0.002]
[1765937165361,0.73246098,87682.0,87681.0,0.001]
[1765937165567,0.22816724,87655.0,87654.0,0.01247]
[1765937165779,0.22818026,87650.0,87649.0,0.02361]
[1765937166422,0.22818026,87650.0,87649.0,0.03887]
[1765937166847,0.22818546,87648.0,87647.0,0.01247]
[1765937167064,0.22818546,87648.0,87646.0,0.0002496]
[1765937167918,0.22818546,87648.0,87647.0,0.03887]
[1765937168101,0.22818546,87648.0,87647.0,0.03932772]
[1765937168411,0.22818546,87648.0,87647.0,0.04032772]
[1765937168616,0.22818546,87648.0,87647.0,0.00045772]
[1765937168828,0.22918546,87648.0,87647.0,0.00345772]
[1765937169263,0.22818546,87648.0,87647.0,0.00045772]
[1765937169464,0.30120228,87648.0,87647.0,0.00145772]
[1765937169691,0.30120228,87648.0,87647.0,0.002]
[1765937170286,0.30120228,87648.0,87647.0,0.001]
[1765937170532,0.22818546,87648.0,87647.0,0.001]
[1765937170731,0.22818546,87648.0,87646.0,0.0002496]
[1765937170906,0.02212321,87647.0,87646.0,0.0002496]
[1765937172541,0.02212321,87647.0,87646.0,0.0012496]
[1765937172809,0.07915313,87647.0,87646.0,0.0012496]
[1765937173387,0.07915313,87647.0,87646.0,0.0002496]
[1765937174546,0.08130828,87647.0,87646.0,0.0002496]
[1765937174748,0.08230828,87647.0,87646.0,0.0002496]
[1765937175267,0.08130828,87647.0,87646.0,0.0002496]
[1765937175468,0.08230828,87647.0,87646.0,0.0002496]
[1765937179934,0.37300828,87647.0,87646.0,0.0002496]
[1765937180161,0.36892507,87647.0,87646.0,0.0002496]
[1765937180377,0.39253507,87647.0,87646.0,0.0002496]
[1765937182783,0.39253507,87647.0,87621.0,0.00526248]
[1765937182784,0.22825317,87622.0,87621.0,0.00526248]
[1765937182995,0.22825317,87622.0,87621.0,0.0057202]
[1765937183610,0.22825317,87622.0,87621.0,0.0293302]
[1765937183765,0.22825317,87622.0,87621.0,0.0445902]
[1765937183964,0.2282429,87626.0,87625.0,0.05134]
[1765937183965,0.01141213,87626.0,87625.0,0.05134]
[1765937184595,0.01141213,87626.0,87625.0,0.02773]
[1765937184997,0.01241213,87626.0,87625.0,0.05379772]
[1765937188472,0.01241213,87626.0,87625.0,0.03018772]
[1765937188809,0.01241213,87626.0,87625.0,0.05379772]
[1765937194043,0.01241213,87626.0,87625.0,0.05445314]
[1765937194251,0.01241213,87626.0,87625.0,0.00311314]
[1765937194446,0.01649534,87626.0,87625.0,0.00265542]
[1765937194628,0.01241213,87626.0,87625.0,0.00265542]
[1765937196434,0.02302779,87626.0,87625.0,0.00265542]
[1765937205876,0.01161566,87626.0,87625.0,0.05414314]
[1765937206015,0.001,87626.0,87625.0,0.39592931]
[1765937207182,0.001,87626.0,87625.0,0.4459477]
[1765937208355,0.01141044,87639.0,87638.0,0.02825]
[1765937208526,0.23961501,87641.0,87640.0,0.01603]
[1765937208733,0.23961501,87641.0,87640.0,0.15235081]
[1765937208936,0.01141018,87641.0,87640.0,0.15235081]
[1765937210006,0.01141018,87641.0,87640.0,0.15335081]
[1765937210402,0.01141018,87641.0,87640.0,0.15535081]
[1765937222378,0.01804,87643.0,87642.0,0.03881]
[1765937222589,0.01804,87643.0,87642.0,0.15280853]
[1765937223216,0.02944953,87646.0,87645.0,0.15235081]
[1765937224110,0.01140953,87646.0,87645.0,0.15235081]
[1765937224310,0.02944953,87646.0,87645.0,0.15235081]
[1765937224968,0.01804,87646.0,87645.0,0.15235081]
[1765937225235,0.01804,87646.0,87645.0,0.15335081]
[1765937225416,0.01804,87646.0,87645.0,0.03981]
[1765937225827,0.01804,87646.0,87645.0,0.04081]
[1765937234070,0.01804,87646.0,87645.0,0.002]
[1765937234507,0.02327836,87646.0,87645.0,0.002]
[1765937234705,0.02327836,87646.0,87645.0,0.001]
[1765937234871,0.08030828,87646.0,87645.0,0.001]
[1765937235091,0.11383051,87639.0,87638.0,0.00024965]
[1765937235407,0.00523836,87639.0,87638.0,0.00024965]
[1765937238397,0.07291872,87639.0,87638.0,0.00024965]
[1765937238847,0.10721809,87639.0,87638.0,0.00024965]
[1765937239062,0.21575963,87639.0,87638.0,0.00024965]
[1765937239272,0.10821809,87639.0,87638.0,0.00024965]
[1765937239489,0.10921809,87639.0,87638.0,0.00024965]
[1765937241785,0.39991809,87639.0,87638.0,1e-08]
[1765937242002,0.5366619,87639.0,87638.0,1e-08]
[1765937242212,0.42033075,87639.0,87638.0,1e-08]
[1765937242441,0.41933075,87639.0,87638.0,1e-08]
[1765937242651,0.41833075,87639.0,87638.0,1e-08]
[1765937242877,0.42433075,87639.0,87638.0,1e-08]
[1765937246721,0.5406619,87639.0,87638.0,1e-08]
[1765937247339,0.42433075,87639.0,87638.0,1e-08]
[1765937248733,0.60128465,87639.0,87638.0,1e-08]
[1765937248939,0.57847154,87639.0,87638.0,1e-08]
[1765937249376,0.05702992,87617.0,87607.0,4.008e-05]
[1765937249551,0.36576992,87617.0,87607.0,4.008e-05]
[1765937250161,0.40008318,87617.0,87607.0,4.008e-05]
[1765937250367,0.45938441,87617.0,87607.0,4.008e-05]
[1765937250565,0.40008318,87617.0,87607.0,4.008e-05]
[1765937251270,0.40208318,87617.0,87607.0,4.008e-05]
[1765937251442,0.40408318,87617.0,87607.0,4.008e-05]
[1765937252103,0.46468657,87617.0,87616.0,1e-08]
[1765937252308,0.60540308,87617.0,87616.0,1e-08]
[1765937252503,0.63282016,87608.0,87607.0,9e-08]
[1765937252704,0.63282016,87608.0,87607.0,0.00045781]
[1765937253065,0.66713703,87608.0,87607.0,0.00045781]
[1765937253277,0.67771124,87608.0,87607.0,0.00045781]
[1765937254106,0.66713703,87608.0,87607.0,0.00045781]
[1765937254624,0.66913703,87608.0,87607.0,0.00045781]
[1765937255275,0.67113703,87608.0,87607.0,0.00045781]
[1765937255478,0.55730652,87608.0,87607.0,0.00045781]
[1765937255774,0.57534652,87608.0,87607.0,0.00142556]
[1765937256152,0.63237644,87608.0,87607.0,0.00142556]
[1765937257256,0.66636264,87608.0,87607.0,0.00142556]
[1765937257635,0.63237644,87608.0,87607.0,0.00142556]
[1765937260386,0.64294963,87608.0,87607.0,0.00142556]
[1765937267519,0.66737418,87608.0,87607.0,0.00142556]
[1765937269083,0.34772992,87607.0,87606.0,94.34546167]
[1765937269287,0.35830311,87607.0,87606.0,93.71880167]
[1765937269713,0.39262018,87607.0,87606.0,93.40547167]
[1765937269893,0.4170595,87607.0,87606.0,93.40547167]
[1765937270033,0.44634131,87607.0,87606.0,93.40547167]
[1765937270236,0.44834131,87607.0,87606.0,93.40547167]
[1765937270459,0.45034131,87607.0,87606.0,93.40547167]
[1765937270892,0.4210595,87607.0,87606.0,93.40547167]
[1765937271764,0.1303595,87607.0,87606.0,93.40547167]
[1765937272046,0.10592018,87607.0,87606.0,93.40547167]
[1765937277189,0.04889026,87607.0,87606.0,93.40547167]
[1765937277393,0.16272077,87607.0,87606.0,93.40547167]
[1765937279779,0.25921816,87607.0,87606.0,93.40547167]
[1765937279981,0.25969827,87607.0,87606.0,93.40547167]
[1765937280201,0.16320088,87607.0,87606.0,93.3980381]
[1765937281327,0.1877313,87607.0,87606.0,93.3980381]
[1765937281539,0.0800389,87607.0,87606.0,93.43536582]
[1765937281736,0.0150533,87607.0,87606.0,93.43536582]
[1765937282033,0.0330933,87607.0,87606.0,93.43536582]
[1765937282243,0.0330933,87607.0,87606.0,93.41083582]
[1765937282447,0.0330933,87607.0,87606.0,93.39849582]
[1765937282448,0.09012322,87607.0,87606.0,93.39849582]
[1765937283952,0.26746556,87607.0,87606.0,93.39849582]
[1765937284367,0.17759234,87607.0,87606.0,93.39849582]
[1765937285670,0.14692381,87607.0,87606.0,93.39849582]
[1765937287544,0.17759254,87607.0,87606.0,93.39849582]
[1765937288517,0.1776684,87607.0,87606.0,93.39849582]
[1765937289924,0.1776684,87607.0,87606.0,93.3980381]
[1765937290124,0.17409913,87607.0,87606.0,93.3980381]
[1765937290551,0.14699967,87607.0,87606.0,93.3980381]
[1765937291534,0.17767138,87607.0,87606.0,93.3980381]
[1765937292463,0.14699967,87607.0,87606.0,93.3980381]
[1765937292674,0.18131838,87607.0,87606.0,93.3980381]
[1765937293224,0.21199009,87607.0,87606.0,93.3980381]
[1765937293477,0.21198975,87607.0,87606.0,93.3980381]
[1765937293893,0.31161915,87607.0,87606.0,93.3980381]
[1765937294112,0.28094778,87607.0,87606.0,93.3980381]
[1765937295381,0.18131838,87607.0,87606.0,93.3980381]
[1765937299663,0.18132116,87607.0,87606.0,93.3980381]
[1765937301350,0.21199622,87607.0,87606.0,93.3980381]
[1765937303676,0.18132116,87607.0,87606.0,93.3980381]
[1765937305560,0.18132116,87607.0,87606.0,92.4580481]
[1765937305561,0.52612276,87607.0,87606.0,92.4580481]
[1765937305768,0.63913251,87607.0,87606.0,92.1447181]
[1765937306006,0.66979928,87607.0,87606.0,92.1447181]
[1765937306230,0.64513251,87607.0,87606.0,92.1447181]
[1765937306408,0.68605251,87607.0,87606.0,92.1447181]
[1765937306648,0.68305251,87607.0,87606.0,92.1447181]
[1765937306853,0.68705251,87607.0,87606.0,92.1447181]
[1765937307286,0.56944997,87607.0,87606.0,91.8313881]
[1765937307495,0.58747887,87607.0,87606.0,91.8313881]
[1765937307708,0.59047887,87607.0,87606.0,91.8313881]
[1765937308688,0.20746048,87607.0,87606.0,91.83184582]
[1765937308887,0.16627006,87607.0,87606.0,91.83184582]
[1765937309101,0.18431006,87607.0,87606.0,91.83184582]
[1765937309310,0.20097006,87607.0,87606.0,91.83184582]
[1765937309701,0.22523006,87607.0,87606.0,91.83184582]
[1765937316435,0.32374579,87607.0,87606.0,91.83184582]
[1765937316928,0.37376418,87607.0,87606.0,91.8313881]
[1765937317134,0.3982946,87607.0,87606.0,91.8313881]
[1765937320054,0.59047887,87607.0,87606.0,91.8313881]
[1765937321096,0.59047932,87607.0,87606.0,91.8313881]
[1765937321916,0.62112537,87607.0,87606.0,91.8313881]
[1765937322332,0.59047932,87607.0,87606.0,91.8313881]
[1765937336700,0.62112537,87607.0,87606.0,91.8313881]
[1765937337102,0.5659489,87607.0,87606.0,91.8313881]
[1765937337324,0.73746249,87607.0,87606.0,91.8313881]
[1765937337745,0.62113134,87607.0,87606.0,91.8313881]
[1765937338257,0.59047443,87607.0,87606.0,91.8313881]
[1765937338840,0.59047443,87607.0,87606.0,91.5180581]
[1765937339100,0.59047443,87607.0,87606.0,91.2047281]
[1765937339426,0.59047443,87607.0,87606.0,90.1092081]
[1765937339633,0.88469822,87607.0,87606.0,89.19500949]
[1765937339844,0.9255891,87607.0,87606.0,89.19500949]
[1765937340261,0.88069822,87607.0,87606.0,89.19500949]
[1765937340472,0.87769822,87607.0,87606.0,89.19500949]
[1765937340678,0.88169822,87607.0,87606.0,88.27710932]
[1765937340906,0.88169822,87607.0,87606.0,88.23707105]
[1765937340907,2.61397933,87607.0,87606.0,88.23707105]
[1765937341114,2.63664216,87607.0,87606.0,86.14921581]
[1765937341323,2.60736035,87607.0,87606.0,86.00401988]
[1765937341540,2.60736035,87607.0,87606.0,85.34185693]
[1765937341541,2.64042105,87607.0,87606.0,85.34185693]
[1765937341746,2.64042105,87607.0,87606.0,84.25007834]
[1765937341962,2.64042105,87607.0,87606.0,84.21575982]
[1765937342169,2.63542105,87607.0,87606.0,83.37144775]
[1765937342378,2.63542105,87607.0,87606.0,83.10106928]
[1765937342591,2.62477987,87607.0,87606.0,81.96427725]
[1765937342797,2.62937076,87607.0,87606.0,81.31725873]
[1765937343007,2.62937076,87607.0,87606.0,80.09111125]
[1765937343219,2.44403961,87607.0,87606.0,76.92501081]
[1765937343419,2.44403961,87607.0,87606.0,74.63935569]
[1765937343625,2.44403961,87607.0,87606.0,74.50425158]
[1765937343626,2.4198615,87607.0,87606.0,74.50425158]
[1765937343837,2.44696952,87607.0,87606.0,74.42985938]
[1765937344040,2.45696952,87607.0,87606.0,72.83552053]
[1765937344255,2.46551064,87607.0,87606.0,72.75472249]
[1765937344460,2.51039064,87607.0,87606.0,72.4165486]
[1765937344670,2.52139064,87607.0,87606.0,72.3421564]
[1765937344898,2.52139064,87607.0,87606.0,71.55807061]
[1765937345113,2.52139064,87607.0,87606.0,70.71372313]
[1765937345316,2.51284952,87607.0,87606.0,70.58993093]
[1765937345571,2.51284952,87607.0,87606.0,69.55502456]
[1765937345810,2.51284952,87607.0,87606.0,69.3612975]
[1765937345990,2.43992952,87607.0,87606.0,68.88536264]
[1765937346224,2.51284952,87607.0,87606.0,68.08457171]
[1765937346416,2.51284952,87607.0,87606.0,68.05023528]
[1765937346638,2.76244952,87607.0,87606.0,67.72623968]
[1765937346814,2.76244952,87607.0,87606.0,66.79554002]
[1765937347044,2.76244952,87607.0,87606.0,66.31784442]
[1765937347199,2.76244952,87607.0,87606.0,66.28350799]
[1765937347408,2.76244952,87607.0,87606.0,66.20911239]
[1765937347609,2.76244952,87607.0,87606.0,63.61025959]
[1765937347807,2.76244952,87607.0,87606.0,63.50352316]
[1765937348009,2.76244952,87607.0,87606.0,63.46918673]
[1765937348316,2.76244952,87607.0,87606.0,62.60203408]
[1765937348527,2.76244952,87607.0,87606.0,62.56769765]
[1765937348695,2.76244952,87607.0,87606.0,62.53336122]
[1765937348889,2.76244952,87607.0,87606.0,61.10484589]
[1765937349193,2.76244952,87607.0,87606.0,61.07050946]
[1765937349419,2.76244952,87607.0,87606.0,61.03617303]
[1765937349627,2.8230686,87607.0,87606.0,60.36154779]
[1765937349831,2.8230686,87607.0,87606.0,60.32721224]
[1765937350038,2.76244952,87607.0,87606.0,59.52292141]
[1765937350249,2.68952952,87607.0,87606.0,58.81199949]
[1765937350566,2.82312731,87607.0,87606.0,58.74332839]
[1765937350798,2.82312731,87607.0,87606.0,58.70899284]
[1765937351076,2.76252952,87607.0,87606.0,57.99170431]
[1765937351284,2.82312731,87607.0,87606.0,57.95736876]
[1765937351489,2.82312731,87607.0,87606.0,57.9118731]
[1765937351637,2.76252952,87607.0,87606.0,57.21019456]
[1765937351862,2.76252952,87607.0,87606.0,57.17585901]
[1765937352042,2.76252952,87607.0,87606.0,57.14152346]
[1765937352246,2.76252952,87607.0,87606.0,56.42942351]
[1765937352247,2.82311411,87607.0,87606.0,56.42942351]
[1765937352447,2.76252952,87607.0,87606.0,56.42942351]
[1765937352943,2.76252952,87607.0,87606.0,55.76565327]
[1765937353532,2.68952952,87607.0,87606.0,55.76565327]
[1765937353745,2.61240311,87607.0,87606.0,55.76565327]
[1765937353942,2.33978311,87607.0,87606.0,55.76565327]
[1765937354158,2.37038363,87607.0,87606.0,55.76565327]
[1765937354583,2.71110202,87607.0,87606.0,55.76565327]
[1765937354794,2.18198618,87607.0,87606.0,55.76565327]
[1765937354969,1.89160435,87607.0,87606.0,55.76565327]
[1765937355171,1.17374575,87607.0,87606.0,55.76565327]
[1765937355373,0.37865575,87607.0,87606.0,55.76565327]
[1765937355532,0.24274575,87607.0,87606.0,55.76565327]
[1765937355762,0.67463482,87607.0,87606.0,55.76565327]
[1765937356131,0.44947874,87607.0,87606.0,55.76565327]
[1765937356433,0.43517214,87607.0,87606.0,55.76565327]
[1765937356635,0.43902575,87607.0,87606.0,55.76565327]
[1765937356996,0.76874414,87607.0,87606.0,55.76565327]
[1765937357178,0.77774414,87607.0,87606.0,55.76565327]
[1765937357784,0.88904414,87607.0,87606.0,55.76565327]